[Event "10th Uppsala Young Champions 2023"]
[Site "Uppsala"]
[Date "2023.10.27"]
[Round "1.8"]
[White "Steiners, Emils"]
[Black "Frank, Anton"]
[Result "1/2-1/2"]
[ECO "D87"]
[WhiteElo "1914"]
[BlackElo "1997"]
[Annotator "NA"]
[PlyCount "107"]
[EventDate "2023.10.27"]
[EventType "swiss"]
[EventCountry "SWE"]
[SourceTitle "playchess.com"]
[Source "ChessBase"]
[SourceQuality "1"]
[TimeControl "5400+30"]

1. d4 {[%emt 0:00:02]} Nf6 {[%emt 0:00:05]} 2. c4 {[%emt 0:00:07]} g6 {[%emt 0:00:04]} 3. Nc3 {[%emt 0:00:04]} d5 {[%emt 0:00:05]} 4. cxd5 {[%emt 0:00:07]} Nxd5 {[%emt 0:00:08]} 5. e4 {[%emt 0:00:04]} Nxc3 {[%emt 0:00:11]} 6. bxc3 {[%emt 0:00:03]} Bg7 {[%emt 0:00:11]} 7. Bc4 {[%emt 0:00:05]} c5 {[%emt 0:00:20]} 8. Ne2 {[%emt 0:00:28]} Nc6 9. Be3 {[%emt 0:00:40]} O-O {[%emt 0:00:27]} 10. O-O {[%emt 0:00:17]} Bg4 {[%emt 0:00:12]} 11. f3 {[%emt 0:10:56]} Na5 {[%emt 0:00:28]} 12. Bb3 {[%emt 0:12:57]} Bd7 {[%emt 0:18:19]} 13. Qd2 {[%emt 0:10:19]} Bb5 {[%emt 0:10:24]} 14. Rfd1 {[%emt 0:07:53]} cxd4 {[%emt 0:10:13]} 15. cxd4 {[%emt 0:09:37]} Nc4 {[%emt 0:12:16]} 16. Bxc4 {[%emt 0:01:14]} Bxc4 {[%emt 0:00:44]} 17. Rac1 {[%emt 0:03:20]} Rc8 {[%emt 0:00:54]} 18. d5 {[%emt 0:02:35]} a6 {[%emt 0:03:12]} 19. Nd4 {[%emt 0:02:14]} Qd7 {[%emt 0:03:44]} 20. Nc6 {[%emt 0:08:26]} Bb5 {[%emt 0:09:41]} 21. Na7 {[%emt 0:02:23]} Rxc1 {[%emt 0:01:40]} 22. Rxc1 {[%emt 0:00:10]} Ba4 {[%emt 0:00:27]} 23. Qa5 {[%emt 0:04:49]} Be5 {[%emt 0:01:57]} 24. Nc6 {[%emt 0:05:02]} Bxc6 {[%emt 0:04:07]} 25. dxc6 {[%emt 0:02:28]} Qd3 {[%emt 0:03:33]} 26. Qd2 {[%emt 0:07:53]} Qxd2 {[%emt 0:03:18]} 27. Bxd2 {[%emt 0:00:19]} bxc6 {[%emt 0:01:20]} 28. Rxc6 {[%emt 0:00:45]} Rd8 {[%emt 0:00:30]} 29. Rc2 {[%emt 0:05:07]} Rb8 {[%emt 0:02:19]} 30. Kf2 {[%emt 0:02:30]} h5 {[%emt 0:01:46]} 31. f4 {[%emt 0:01:19]} Bd4+ {[%emt 0:01:33]} 32. Be3 {[%emt 0:00:34]} Rb4 {[%emt 0:01:11]} 33. Bxd4 {[%emt 0:01:05]} Rxd4 {[%emt 0:00:07]} 34. Ke3 {[%emt 0:00:06]} Ra4 {[%emt 0:00:10]} 35. g3 {[%emt 0:00:52]} h4 {[%emt 0:03:08]} 36. gxh4 {[%emt 0:00:59]} Ra3+ {[%emt 0:00:08]} 37. Kd4 {[%emt 0:00:12]} Rh3 {[%emt 0:00:13]} 38. Rc6 {[%emt 0:00:56]} Rxh4 {[%emt 0:01:41]} 39. Rxa6 {[%emt 0:00:28]} Rxf4 {[%emt 0:00:10]} 40. a4 {[%emt 0:00:30]} Rh4 {[%emt 0:02:45]} 41. a5 {[%emt 0:00:32]} Rxh2 {[%emt 0:00:21]} 42. Rc6 {[%emt 0:00:31]} Ra2 {[%emt 0:00:38]} 43. a6 {[%emt 0:00:26]} g5 {[%emt 0:01:31]} 44. Kc5 {[%emt 0:00:26]} g4 {[%emt 0:00:53]} 45. Kb6 {[%emt 0:00:16]} g3 {[%emt 0:00:58]} 46. Rc3 {[%emt 0:00:30]} g2 {[%emt 0:00:05]} 47. Rg3+ {[%emt 0:00:06]} Kf8 {[%emt 0:00:06]} 48. a7 {[%emt 0:00:29]} Rb2+ {[%emt 0:00:24]} 49. Kc7 {[%emt 0:00:23]} Ra2 {[%emt 0:00:16]} 50. Kb6 {[%emt 0:00:38]} Rb2+ {[%emt 0:00:38]} 51. Kc6 {[%emt 0:00:22]} Ra2 {[%emt 0:00:19]} 52. Kb6 {[%emt 0:01:07]} Rb2+ {[%emt 0:00:39]} 53. Kc7 {[%emt 0:00:13]} Ra2 {[%emt 0:00:07]} 54. Kb6 {[%emt 0:00:10]} 1/2-1/2

[Event "10th Uppsala Young Champions 2023"]
[Site "Uppsala"]
[Date "2023.10.27"]
[Round "1.9"]
[White "Valcu, Lavinia"]
[Black "Seiger, Vidar"]
[Result "1/2-1/2"]
[ECO "E73"]
[WhiteElo "1990"]
[BlackElo "1908"]
[Annotator "NA"]
[PlyCount "72"]
[EventDate "2023.10.27"]
[EventType "swiss"]
[EventCountry "SWE"]
[SourceTitle "playchess.com"]
[Source "ChessBase"]
[SourceQuality "1"]
[TimeControl "5400+30"]

1. d4 {[%emt 0:00:03]} Nf6 {[%emt 0:00:10]} 2. c4 {[%emt 0:00:10]} g6 {[%emt 0:00:09]} 3. Nc3 {[%emt 0:00:05]} Bg7 {[%emt 0:00:07]} 4. e4 {[%emt 0:00:04]} O-O {[%emt 0:00:11]} 5. Be2 {[%emt 0:00:03]} d6 {[%emt 0:04:14]} 6. Be3 {[%emt 0:00:07]} Na6 {[%emt 0:05:47]} 7. h4 {[%emt 0:00:07]} c5 {[%emt 0:02:50]} 8. d5 {[%emt 0:00:09]} e6 {[%emt 0:00:11]} 9. dxe6 {[%emt 0:09:45]} Bxe6 {[%emt 0:04:32]} 10. h5 {[%emt 0:00:15]} Qa5 {[%emt 0:10:24]} 11. Qd2 {[%emt 0:22:06]} Nb4 {[%emt 0:07:33]} 12. Kf1 {[%emt 0:05:35]} Nc6 {[%emt 0:16:05]} 13. hxg6 {[%emt 0:11:21]} fxg6 {[%emt 0:05:41]} 14. Qxd6 {[%emt 0:01:14]} Rfe8 {[%emt 0:02:08]} 15. Qxc5 {[%emt 0:26:32]} Qxc5 {[%emt 0:03:11]} 16. Bxc5 {[%emt 0:00:36]} Na5 {[%emt 0:04:05]} 17. Nf3 {[%emt 0:06:22]} Bxc4 {[%emt 0:05:11]} 18. Nd2 {[%emt 0:00:33]} Bxe2+ {[%emt 0:06:17]} 19. Kxe2 {[%emt 0:00:07]} Rac8 {[%emt 0:02:11]} 20. Bxa7 {[%emt 0:01:22]} Nc4 {[%emt 0:00:40]} 21. Nxc4 {[%emt 0:00:22]} Rxc4 {[%emt 0:00:04]} 22. f3 {[%emt 0:02:49]} Rb4 {[%emt 0:00:53]} 23. Nd1 {[%emt 0:05:16]} b6 {[%emt 0:03:00]} 24. Rc1 {[%emt 0:00:26]} Nh5 {[%emt 0:03:32]} 25. a3 {[%emt 0:03:43]} Ra4 {[%emt 0:00:36]} 26. Rxh5 {[%emt 0:00:10]} gxh5 {[%emt 0:00:27]} 27. Bxb6 {[%emt 0:00:06]} Rb8 {[%emt 0:01:01]} 28. Bc5 {[%emt 0:02:50]} Bxb2 {[%emt 0:02:33]} 29. Rb1 {[%emt 0:02:00]} Be5 {[%emt 0:00:04]} 30. Rxb8+ {[%emt 0:00:11]} Bxb8 {[%emt 0:00:01]} 31. Bb4 {[%emt 0:00:15]} Ra6 {[%emt 0:01:42]} 32. Ne3 {[%emt 0:00:59]} Kf7 {[%emt 0:01:21]} 33. Nf5 {[%emt 0:00:39]} Be5 {[%emt 0:01:07]} 34. g3 {[%emt 0:00:28]} Ke6 {[%emt 0:02:05]} 35. Kd3 {[%emt 0:00:22]} Kd7 {[%emt 0:02:56]} 36. Kc4 {[%emt 0:00:26]} Bb2 {[%emt 0:01:26]} 1/2-1/2

[Event "10th Uppsala Young Champions 2023"]
[Site "Uppsala"]
[Date "2023.10.27"]
[Round "1.10"]
[White "Ostensson, Julia"]
[Black "Omarsson, Adam"]
[Result "0-1"]
[ECO "B51"]
[WhiteElo "1878"]
[BlackElo "1946"]
[Annotator "NA"]
[PlyCount "66"]
[EventDate "2023.10.27"]
[EventType "swiss"]
[EventCountry "SWE"]
[SourceTitle "playchess.com"]
[Source "ChessBase"]
[SourceQuality "1"]
[TimeControl "5400+30"]

1. e4 {[%emt 0:00:03]} c5 {[%emt 0:00:12]} 2. Nf3 {[%emt 0:00:05]} d6 {[%emt 0:00:19]} 3. Bb5+ {[%emt 0:00:29]} Nd7 {[%emt 0:00:23]} 4. O-O {[%emt 0:03:35]} Ngf6 {[%emt 0:04:02]} 5. Re1 {[%emt 0:00:45]} e6 {[%emt 0:04:29]} 6. c3 {[%emt 0:01:49]} Be7 {[%emt 0:01:30]} 7. d4 {[%emt 0:00:32]} O-O {[%emt 0:05:47]} 8. Nbd2 {[%emt 0:02:32]} a6 {[%emt 0:04:32]} 9. Bd3 {[%emt 0:00:52]} b5 {[%emt 0:04:07]} 10. Nf1 {[%emt 0:05:26]} Bb7 {[%emt 0:02:33]} 11. Ng3 {[%emt 0:00:34]} c4 {[%emt 0:02:44]} 12. Bc2 {[%emt 0:01:24]} a5 {[%emt 0:00:13]} 13. h4 {[%emt 0:12:25]} b4 {[%emt 0:13:36]} 14. Qe2 {[%emt 0:16:15]} Ba6 {[%emt 0:10:09]} 15. h5 {[%emt 0:13:43]} Ne8 {[%emt 0:12:34]} 16. Rd1 {[%emt 0:15:19]} Nc7 {[%emt 0:04:41]} 17. e5 {[%emt 0:10:01]} d5 {[%emt 0:00:34]} 18. Nh2 {[%emt 0:02:10]} bxc3 {[%emt 0:07:58]} 19. bxc3 {[%emt 0:00:07]} Nb5 {[%emt 0:00:08]} 20. Qe3 {[%emt 0:02:57]} Na3 {[%emt 0:07:14]} 21. Bxa3 {[%emt 0:09:23]} Bxa3 {[%emt 0:00:11]} 22. Ng4 {[%emt 0:00:24]} Kh8 {[%emt 0:02:36]} 23. Rab1 {[%emt 0:00:13]} Qh4 {[%emt 0:03:06]} 24. Qf3 {[%emt 0:00:52]} f5 {[%emt 0:01:49]} 25. exf6 {[%emt 0:00:23]} Nxf6 {[%emt 0:00:07]} 26. Nxf6 {[%emt 0:00:38]} Rxf6 {[%emt 0:00:06]} 27. Qe3 {[%emt 0:00:15]} Raf8 {[%emt 0:00:21]} 28. Rd2 {[%emt 0:00:45]} Bd6 {[%emt 0:00:07]} 29. Re2 {[%emt 0:00:31]} Bf4 {[%emt 0:01:46]} 30. Qf3 {[%emt 0:00:26]} Bh6 {[%emt 0:01:01]} 31. Qxf6 {[%emt 0:00:33]} Qxf6 {[%emt 0:00:11]} 32. Rb6 {[%emt 0:00:17]} Bc8 {[%emt 0:00:07]} 33. Rb8 {[%emt 0:00:40]} Bf4 {[%emt 0:00:20]} 0-1

[Event "10th Uppsala Young Champions 2023"]
[Site "Uppsala"]
[Date "2023.10.27"]
[Round "1.11"]
[White "Morell, Oscar"]
[Black "Tripathi, Pratyush"]
[Result "1/2-1/2"]
[ECO "D12"]
[WhiteElo "1942"]
[BlackElo "1801"]
[Annotator "NA"]
[PlyCount "85"]
[EventDate "2023.10.27"]
[EventType "swiss"]
[EventCountry "SWE"]
[SourceTitle "playchess.com"]
[Source "ChessBase"]
[SourceQuality "1"]
[TimeControl "5400+30"]

1. e3 {[%emt 0:00:04]} d5 {[%emt 0:00:25]} 2. c4 {[%emt 0:00:15]} c6 {[%emt 0:00:08]} 3. d4 {[%emt 0:00:22]} Nf6 {[%emt 0:00:09]} 4. Nf3 Bf5 {[%emt 0:00:56]} 5. b3 {[%emt 0:02:02]} h6 {[%emt 0:00:45]} 6. Bb2 {[%emt 0:01:52]} e6 {[%emt 0:00:15]} 7. c5 {[%emt 0:11:01]} a5 {[%emt 0:06:45]} 8. a3 {[%emt 0:03:47]} Nbd7 {[%emt 0:05:40]} 9. Bd3 {[%emt 0:11:58]} Qc7 {[%emt 0:03:45]} 10. Bxf5 {[%emt 0:03:35]} exf5 {[%emt 0:00:06]} 11. O-O {[%emt 0:01:54]} g6 {[%emt 0:01:11]} 12. Nc3 {[%emt 0:05:51]} Bg7 {[%emt 0:00:33]} 13. b4 {[%emt 0:04:08]} axb4 {[%emt 0:00:11]} 14. axb4 {[%emt 0:00:10]} O-O {[%emt 0:00:04]} 15. Qb3 {[%emt 0:01:20]} Ne4 {[%emt 0:12:50]} 16. Ra3 {[%emt 0:06:25]} b5 {[%emt 0:03:06]} 17. Rfa1 {[%emt 0:10:47]} Rxa3 {[%emt 0:05:20]} 18. Qxa3 {[%emt 0:01:52]} Ndf6 {[%emt 0:01:15]} 19. Qa7 {[%emt 0:02:03]} Qxa7 {[%emt 0:08:26]} 20. Rxa7 {[%emt 0:00:04]} Nxc3 {[%emt 0:00:10]} 21. Bxc3 {[%emt 0:00:16]} Ne4 {[%emt 0:00:05]} 22. Be1 {[%emt 0:02:38]} Rc8 {[%emt 0:00:30]} 23. Kf1 {[%emt 0:01:31]} Kf8 {[%emt 0:05:40]} 24. Ng1 {[%emt 0:01:22]} Ng5 {[%emt 0:05:29]} 25. Ke2 {[%emt 0:01:25]} Ne6 {[%emt 0:00:14]} 26. Kd3 {[%emt 0:01:58]} Rc7 {[%emt 0:00:53]} 27. Ra8+ {[%emt 0:01:00]} Ke7 {[%emt 0:00:31]} 28. Ne2 {[%emt 0:00:31]} Kd7 {[%emt 0:00:28]} 29. f3 {[%emt 0:01:08]} Rc8 {[%emt 0:01:42]} 30. Ra5 {[%emt 0:04:19]} Kc7 {[%emt 0:03:05]} 31. Ra7+ {[%emt 0:01:56]} Kd8 {[%emt 0:00:06]} 32. Rxf7 {[%emt 0:07:32]} Ra8 {[%emt 0:00:13]} 33. Nf4 {[%emt 0:01:49]} Ke8 {[%emt 0:01:36]} 34. Rb7 {[%emt 0:00:46]} Nxf4+ {[%emt 0:01:01]} 35. exf4 {[%emt 0:00:04]} Bf6 {[%emt 0:00:23]} 36. Rc7 {[%emt 0:03:03]} Ra6 {[%emt 0:01:17]} 37. g4 {[%emt 0:01:11]} Be7 {[%emt 0:01:34]} 38. Rc8+ {[%emt 0:02:51]} Kf7 {[%emt 0:08:26]} 39. h4 {[%emt 0:05:10]} Ra3+ {[%emt 0:02:04]} 40. Ke2 {[%emt 0:00:00]} Ra2+ {[%emt 0:02:35]} 41. Bd2 {[%emt 0:00:00]} Ra6 {[%emt 0:01:21]} 42. h5 {[%emt 0:00:00]} gxh5 {[%emt 0:00:50]} 43. gxh5 {[%emt 0:00:00]} 1/2-1/2

[Event "10th Uppsala Young Champions 2023"]
[Site "Uppsala"]
[Date "2023.10.28"]
[Round "2.1"]
[White "Domalchuk-Jonasson, Aleksandr"]
[Black "Falkevall, Axel"]
[Result "1/2-1/2"]
[ECO "D00"]
[WhiteElo "2392"]
[BlackElo "2280"]
[Annotator "ChessBase"]
[PlyCount "227"]
[EventDate "2023.10.27"]
[EventType "swiss"]
[EventCountry "SWE"]
[SourceTitle "playchess.com"]
[Source "ChessBase"]
[SourceQuality "1"]
[TimeControl "5400+30"]

1. Nf3 {[%emt 0:00:28]} Nf6 {[%emt 0:00:12]} 2. d4 {[%emt 0:00:22]} g6 {[%emt 0:00:12]} 3. Nc3 {[%emt 0:00:13]} d5 {[%emt 0:00:17]} 4. Bf4 {[%emt 0:00:11]} Bg7 {[%emt 0:00:32]} 5. Nb5 {[%emt 0:00:11]} Na6 {[%emt 0:00:12]} 6. e3 {[%emt 0:00:22]} O-O {[%emt 0:01:26]} 7. h3 {[%emt 0:00:20]} c6 {[%emt 0:02:14]} 8. Nc3 {[%emt 0:00:05]} Nc7 {[%emt 0:02:22]} 9. Bd3 {[%emt 0:02:27]} Nce8 {[%emt 0:02:09]} 10. O-O {[%emt 0:01:01]} Nd6 {[%emt 0:00:41]} 11. a4 {[%emt 0:07:25]} a5 {[%emt 0:04:53]} 12. Re1 {[%emt 0:11:11]} Re8 {[%emt 0:11:42]} 13. Be5 {[%emt 0:04:43]} Nfe4 {[%emt 0:04:00]} 14. Bxe4 {[%emt 0:14:46]} dxe4 {[%emt 0:00:29]} 15. Nd2 {[%emt 0:00:43]} f5 {[%emt 0:04:01]} 16. Bxg7 {[%emt 0:04:06]} Kxg7 {[%emt 0:00:18]} 17. f3 {[%emt 0:08:10]} exf3 {[%emt 0:09:37]} 18. Nxf3 {[%emt 0:00:31]} b5 {[%emt 0:07:24]} 19. axb5 {[%emt 0:16:11]} cxb5 {[%emt 0:00:35]} 20. d5 {[%emt 0:00:42]} Qb6 {[%emt 0:07:43]} 21. Ne5 {[%emt 0:04:13]} e6 {[%emt 0:09:53]} 22. Qd4 {[%emt 0:04:12]} Qxd4 {[%emt 0:00:30]} 23. exd4 {[%emt 0:00:03]} Bb7 {[%emt 0:04:18]} 24. dxe6 {[%emt 0:11:42]} Rxe6 {[%emt 0:01:23]} 25. Nd7 {[%emt 0:00:23]} Rxe1+ {[%emt 0:07:17]} 26. Rxe1 {[%emt 0:00:01]} Ne4 {[%emt 0:01:09]} 27. Nxe4 {[%emt 0:07:36]} Bxe4 {[%emt 0:00:22]} 28. c3 {[%emt 0:00:03]} b4 {[%emt 0:02:22]} 29. Ra1 {[%emt 0:00:46]} bxc3 {[%emt 0:02:17]} 30. bxc3 {[%emt 0:00:01]} Ra7 {[%emt 0:02:23]} 31. Nc5 {[%emt 0:00:17]} Bd5 {[%emt 0:00:17]} 32. Kf2 {[%emt 0:00:26]} f4 {[%emt 0:02:55]} 33. Ra4 {[%emt 0:01:14]} Bc6 {[%emt 0:01:19]} 34. Ra3 {[%emt 0:00:08]} Bd5 {[%emt 0:00:39]} 35. h4 {[%emt 0:01:29]} Kf6 {[%emt 0:01:28]} 36. Ra4 {[%emt 0:00:21]} Bc6 {[%emt 0:00:19]} 37. Ra3 {[%emt 0:00:13]} Bd5 {[%emt 0:00:25]} 38. g3 {[%emt 0:00:30]} fxg3+ {[%emt 0:01:08]} 39. Kxg3 {[%emt 0:00:01]} g5 {[%emt 0:03:33]} 40. Ra4 {[%emt 0:01:56]} gxh4+ {[%emt 0:00:24]} 41. Kxh4 {[%emt 0:00:01]} Bc6 {[%emt 0:00:34]} 42. Ra1 {[%emt 0:00:03]} Bd5 {[%emt 0:00:44]} 43. Kg4 {[%emt 0:00:58]} Kg6 {[%emt 0:01:27]} 44. Kf4 {[%emt 0:00:28]} Kf6 {[%emt 0:00:18]} 45. Ra4 {[%emt 0:00:58]} Bc6 {[%emt 0:00:17]} 46. Ra3 {[%emt 0:00:03]} Bd5 {[%emt 0:00:18]} 47. Ne4+ {[%emt 0:00:04]} Ke6 {[%emt 0:01:53]} 48. Nd2 {[%emt 0:00:14]} Rc7 {[%emt 0:01:16]} 49. Ke3 {[%emt 0:01:43]} h5 {[%emt 0:00:22]} 50. Kd3 {[%emt 0:00:18]} h4 {[%emt 0:00:14]} 51. c4 {[%emt 0:00:05]} Bg2 {[%emt 0:00:11]} 52. Rxa5 {[%emt 0:00:14]} Rh7 {[%emt 0:00:41]} 53. Ne4 {[%emt 0:00:41]} Rh8 {[%emt 0:02:23]} 54. Re5+ {[%emt 0:00:57]} Kf7 {[%emt 0:00:21]} 55. Rf5+ {[%emt 0:00:43]} Ke6 {[%emt 0:00:22]} 56. Re5+ {[%emt 0:00:02]} Kf7 {[%emt 0:00:05]} 57. Rf5+ {[%emt 0:00:59]} Ke6 {[%emt 0:00:05]} 58. Rf2 {[%emt 0:00:26]} h3 {[%emt 0:00:30]} 59. d5+ {[%emt 0:00:13]} Ke5 {[%emt 0:01:36]} 60. Ng5 {[%emt 0:01:00]} Bxd5 {[%emt 0:00:18]} 61. cxd5 {[%emt 0:00:30]} h2 {[%emt 0:01:00]} 62. Nf3+ {[%emt 0:00:23]} Kxd5 {[%emt 0:00:05]} 63. Nxh2 {[%emt 0:00:03]} Rh3+ {[%emt 0:00:23]} 64. Nf3 {[%emt 0:00:03]} Rh8 {[%emt 0:00:15]} 65. Ra2 {[%emt 0:00:06]} Rb8 {[%emt 0:00:19]} 66. Ra5+ {[%emt 0:00:04]} Kd6 {[%emt 0:00:07]} 67. Nd4 {[%emt 0:00:05]} Rb1 {[%emt 0:00:20]} 68. Nf5+ {[%emt 0:00:14]} Ke6 {[%emt 0:00:12]} 69. Ke4 {[%emt 0:00:08]} Re1+ {[%emt 0:00:27]} 70. Ne3 {[%emt 0:00:04]} Re2 {[%emt 0:00:21]} 71. Ra6+ {[%emt 0:00:07]} Kd7 {[%emt 0:00:06]} 72. Kd4 {[%emt 0:00:14]} Rd2+ {[%emt 0:00:12]} 73. Kc5 {[%emt 0:00:23]} Rh2 {[%emt 0:00:57]} 74. Rd6+ {[%emt 0:00:13]} Ke7 {[%emt 0:00:06]} 75. Nf5+ {[%emt 0:03:09]} Kf7 {[%emt 0:00:08]} 76. Kd5 {[%emt 0:00:10]} Re2 {[%emt 0:00:46]} 77. Ra6 {[%emt 0:00:28]} Re1 {[%emt 0:00:27]} 78. Nd6+ {[%emt 0:00:53]} Kg7 {[%emt 0:01:19]} 79. Ne4 {[%emt 0:00:06]} Rb1 {[%emt 0:00:37]} 80. Ke6 {[%emt 0:00:34]} Kg6 {[%emt 0:00:38]} 81. Ra2 {[%emt 0:00:34]} Rg1 {[%emt 0:00:09]} 82. Rf2 {[%emt 0:01:04]} Kg7 {[%emt 0:00:57]} 83. Rf4 {[%emt 0:01:52]} Kg6 {[%emt 0:00:47]} 84. Rf3 {[%emt 0:00:02]} Kg7 {[%emt 0:00:30]} 85. Kf5 {[%emt 0:00:50]} Kf7 {[%emt 0:00:43]} 86. Rb3 {[%emt 0:00:05]} Rf1+ {[%emt 0:00:08]} 87. Ke5 {[%emt 0:00:04]} Rg1 {[%emt 0:01:11]} 88. Ng3 {[%emt 0:00:15]} Re1+ {[%emt 0:00:12]} 89. Kf5 {[%emt 0:00:12]} Ke7 {[%emt 0:00:28]} 90. Ne4 {[%emt 0:00:15]} Rf1+ {[%emt 0:00:22]} 91. Ke5 {[%emt 0:00:04]} Rd1 {[%emt 0:00:25]} 92. Rb7+ {[%emt 0:00:26]} Rd7 {[%emt 0:00:14]} 93. Rb6 {[%emt 0:00:03]} Rd1 {[%emt 0:00:30]} 94. Re6+ {[%emt 0:00:04]} Kd7 {[%emt 0:00:28]} 95. Nf6+ {[%emt 0:00:03]} Kc7 {[%emt 0:00:20]} 96. Nd5+ {[%emt 0:00:02]} Kb7 {[%emt 0:01:03]} 97. Kd6 {[%emt 0:01:19]} Rc1 {[%emt 0:00:47]} 98. Re3 {[%emt 0:00:40]} Rb1 {[%emt 0:00:57]} 99. Rh3 {[%emt 0:02:51]} Rb2 {[%emt 0:00:35]} 100. Ne3 {[%emt 0:00:53]} Rb6+ {[%emt 0:00:45]} 101. Kd7 {[%emt 0:00:12]} Rb3 {[%emt 0:00:29]} 102. Kd6 {[%emt 0:00:08]} Rb6+ {[%emt 0:00:05]} 103. Kd5 {[%emt 0:00:25]} Rb5+ {[%emt 0:00:11]} 104. Kc4 {[%emt 0:00:04]} Rb1 {[%emt 0:00:14]} 105. Kc5 {[%emt 0:00:08]} Rc1+ {[%emt 0:00:32]} 106. Nc4 {[%emt 0:00:03]} Rc2 {[%emt 0:00:49]} 107. Rh7+ {[%emt 0:01:16]} Ka6 {[%emt 0:00:19]} 108. Rc7 {[%emt 0:01:27]} Rc1 {[%emt 0:00:32]} 109. Re7 {[%emt 0:01:08]} Rc2 {[%emt 0:00:29]} 110. Kd5 {[%emt 0:00:17]} Rc1 {[%emt 0:00:34]} 111. Rc7 {[%emt 0:00:25]} Rd1+ {[%emt 0:00:48]} 112. Kc6 {[%emt 0:00:30]} Rc1 {[%emt 0:00:26]} 113. Kc5 {[%emt 0:00:02]} Rc2 {[%emt 0:00:37]} 114. Kd5 {[%emt 0:00:02]} 1/2-1/2

[Event "10th Uppsala Young Champions 2023"]
[Site "Uppsala"]
[Date "2023.10.28"]
[Round "2.2"]
[White "Ljung, Harald"]
[Black "Gavrilescu, David"]
[Result "0-1"]
[ECO "D02"]
[WhiteElo "2159"]
[BlackElo "2534"]
[Annotator "RC"]
[PlyCount "98"]
[EventDate "2023.10.27"]
[EventType "swiss"]
[EventCountry "SWE"]
[SourceTitle "playchess.com"]
[Source "ChessBase"]
[SourceQuality "1"]
[TimeControl "5400+30"]

1. d4 {[%emt 0:00:04]} d5 {[%emt 0:00:21]} 2. Nf3 {[%emt 0:00:52]} Nf6 {[%emt 0:00:21]} 3. g3 {[%emt 0:00:20]} c5 {[%emt 0:00:18]} 4. Bg2 {[%emt 0:00:16]} cxd4 {[%emt 0:00:15]} 5. O-O {[%emt 0:00:15]} h6 {[%emt 0:00:17]} 6. b3 {[%emt 0:01:32]} h5 {[%emt 0:00:31]} 7. Bb2 {[%emt 0:01:02]} h4 {[%emt 0:00:41]} 8. Bxd4 {[%emt 0:06:58]} hxg3 {[%emt 0:07:44]} 9. hxg3 {[%emt 0:00:25]} Nc6 {[%emt 0:00:21]} 10. Nc3 {[%emt 0:10:50]} e6 {[%emt 0:16:45]} 11. Qd3 {[%emt 0:08:21]} Bd6 {[%emt 0:17:02]} 12. Bxf6 {[%emt 0:10:44]} Qxf6 {[%emt 0:01:36]} 13. Nb5 {[%emt 0:00:59]} Bb8 {[%emt 0:00:40]} 14. Rfd1 {[%emt 0:04:06]} a6 {[%emt 0:07:25]} 15. Nbd4 {[%emt 0:02:12]} Ne7 {[%emt 0:12:18]} 16. e4 {[%emt 0:08:13]} dxe4 {[%emt 0:01:34]} 17. Qxe4 {[%emt 0:00:24]} O-O {[%emt 0:00:07]} 18. Re1 {[%emt 0:05:21]} Ng6 {[%emt 0:01:21]} 19. Rad1 {[%emt 0:05:47]} Bc7 {[%emt 0:02:28]} 20. Nh4 {[%emt 0:04:06]} Nxh4 {[%emt 0:04:49]} 21. Qxh4 {[%emt 0:00:09]} Qxh4 {[%emt 0:00:07]} 22. gxh4 {[%emt 0:00:01]} Rd8 {[%emt 0:08:45]} 23. Ne2 {[%emt 0:08:44]} Rb8 {[%emt 0:01:03]} 24. c4 {[%emt 0:01:16]} Bd7 {[%emt 0:03:02]} 25. Rd3 {[%emt 0:01:54]} Be8 {[%emt 0:00:38]} 26. Red1 {[%emt 0:00:27]} Rxd3 {[%emt 0:00:22]} 27. Rxd3 {[%emt 0:00:01]} Kf8 {[%emt 0:00:19]} 28. Nc3 {[%emt 0:01:36]} b6 {[%emt 0:02:09]} 29. Bf3 {[%emt 0:05:03]} Be5 {[%emt 0:00:31]} 30. Ne2 {[%emt 0:00:48]} Ke7 {[%emt 0:00:53]} 31. Kg2 {[%emt 0:04:08]} b5 {[%emt 0:02:19]} 32. cxb5 {[%emt 0:02:07]} axb5 {[%emt 0:00:10]} 33. b4 {[%emt 0:02:24]} Rc8 {[%emt 0:00:07]} 34. Ra3 {[%emt 0:00:21]} Rc7 {[%emt 0:02:58]} 35. Ra5 {[%emt 0:00:27]} f6 {[%emt 0:00:37]} 36. a3 {[%emt 0:00:32]} Bd7 37. h5 {[%emt 0:00:30]} Be8 38. Ra6 {[%emt 0:00:30]} f5 39. Ng3 {[%emt 0:00:30]} Bd4 40. Ne2 {[%emt 0:00:30]} Ra7 41. Rxa7+ {[%emt 0:00:30]} Bxa7 42. Nf4 {[%emt 0:00:30]} Bd4 43. Nd3 {[%emt 0:00:30]} e5 44. Be2 {[%emt 0:00:30]} Bc3 45. Nc5 {[%emt 0:00:30]} Bb2 46. a4 {[%emt 0:00:30]} bxa4 47. b5 {[%emt 0:00:30]} a3 48. b6 {[%emt 0:00:30]} Bc6+ 49. Bf3 {[%emt 0:00:30]} e4 0-1

[Event "10th Uppsala Young Champions 2023"]
[Site "Uppsala"]
[Date "2023.10.28"]
[Round "2.3"]
[White "Omarsson, Adam"]
[Black "Morell, Ludvig"]
[Result "1/2-1/2"]
[ECO "E54"]
[WhiteElo "1946"]
[BlackElo "2017"]
[Annotator "NA RC"]
[PlyCount "95"]
[EventDate "2023.10.27"]
[EventType "swiss"]
[EventCountry "SWE"]
[SourceTitle "playchess.com"]
[Source "ChessBase"]
[SourceQuality "1"]
[TimeControl "5400+30"]

1. d4 {[%emt 0:00:03]} Nf6 {[%emt 0:00:13]} 2. c4 {[%emt 0:00:12]} e6 {[%emt 0:00:04]} 3. Nc3 {[%emt 0:00:10]} Bb4 {[%emt 0:00:21]} 4. e3 {[%emt 0:00:12]} c5 {[%emt 0:00:16]} 5. Nf3 {[%emt 0:01:07]} O-O {[%emt 0:00:38]} 6. Bd3 {[%emt 0:02:30]} cxd4 {[%emt 0:02:35]} 7. exd4 {[%emt 0:00:06]} d5 {[%emt 0:00:23]} 8. O-O {[%emt 0:00:14]} dxc4 {[%emt 0:06:04]} 9. Bxc4 {[%emt 0:00:13]} b6 {[%emt 0:00:43]} 10. Bg5 {[%emt 0:08:53]} Bb7 {[%emt 0:03:56]} 11. Bd3 {[%emt 0:05:45]} h6 {[%emt 0:03:19]} 12. Bh4 {[%emt 0:02:48]} Be7 {[%emt 0:01:52]} 13. Re1 {[%emt 0:07:02]} Nbd7 {[%emt 0:01:35]} 14. Rc1 {[%emt 0:05:55]} Nd5 {[%emt 0:07:45]} 15. Bxe7 {[%emt 0:04:30]} Qxe7 {[%emt 0:01:48]} 16. Nxd5 {[%emt 0:05:25]} Bxd5 {[%emt 0:00:15]} 17. Bc4 {[%emt 0:00:29]} Nf6 {[%emt 0:02:34]} 18. Bxd5 {[%emt 0:02:20]} Nxd5 {[%emt 0:00:13]} 19. a3 {[%emt 0:06:42]} Rac8 {[%emt 0:01:58]} 20. Qd2 {[%emt 0:02:35]} Qf6 {[%emt 0:04:09]} 21. Rc2 {[%emt 0:05:56]} Qf4 {[%emt 0:01:01]} 22. Rec1 {[%emt 0:01:12]} Rxc2 {[%emt 0:02:59]} 23. Qxf4 {[%emt 0:00:18]} Nxf4 {[%emt 0:00:11]} 24. Rxc2 {[%emt 0:00:04]} Rd8 {[%emt 0:00:24]} 25. g3 {[%emt 0:02:14]} Nd5 {[%emt 0:00:52]} 26. Kf1 {[%emt 0:00:32]} f6 {[%emt 0:00:39]} 27. Ke2 {[%emt 0:01:10]} Rd7 {[%emt 0:01:37]} 28. Nd2 {[%emt 0:01:27]} Ne7 {[%emt 0:01:46]} 29. Nf3 {[%emt 0:02:50]} Nf5 {[%emt 0:01:02]} 30. Rc6 {[%emt 0:01:50]} Kf7 {[%emt 0:00:52]} 31. Rc4 {[%emt 0:03:07]} Ke7 {[%emt 0:02:43]} 32. a4 {[%emt 0:01:40]} Nd6 {[%emt 0:01:39]} 33. Rc6 {[%emt 0:01:08]} b5 {[%emt 0:03:55]} 34. axb5 {[%emt 0:00:36]} Nxb5 {[%emt 0:00:32]} 35. Ke3 {[%emt 0:00:11]} Rb7 {[%emt 0:00:42]} 36. Nd2 {[%emt 0:02:40]} Kd7 {[%emt 0:00:24]} 37. Rc2 {[%emt 0:00:34]} Nd6 {[%emt 0:00:15]} 38. g4 {[%emt 0:02:24]} Rb4 {[%emt 0:01:44]} 39. b3 {[%emt 0:01:04]} h5 {[%emt 0:04:32]} 40. h3 {[%emt 0:00:37]} hxg4 {[%emt 0:01:40]} 41. hxg4 {[%emt 0:00:06]} Rb5 {[%emt 0:10:29]} 42. Rc5 {[%emt 0:01:10]} Rb6 {[%emt 0:00:29]} 43. f4 {[%emt 0:00:33]} g6 {[%emt 0:01:11]} 44. Rc3 {[%emt 0:00:31]} Nb5 {[%emt 0:01:35]} 45. Rc4 {[%emt 0:00:28]} Nc7 {[%emt 0:00:44]} 46. Rc1 {[%emt 0:01:15]} Nd5+ {[%emt 0:00:15]} 47. Kf3 {[%emt 0:00:55]} Rb4 {[%emt 0:03:11]} 48. Ke4 {[%emt 0:20:47]} 1/2-1/2